bitfinex/quotes_ETHUSD_20230403
["timestamp","ask_amount","ask_price","bid_price","bid_amount"]
[1680548582618,3.90317864,1835.2,1835.1,1.63847949]
[1680548583140,3.90317864,1835.2,1835.1,1.86847949]
[1680548583305,3.90317864,1835.2,1835.1,2.44230685]
[1680548583521,3.90317864,1835.2,1835.1,4.51730685]
[1680548583857,3.90317864,1835.2,1835.1,4.51530685]
[1680548583858,3.89717864,1835.2,1835.1,4.51530685]
[1680548584064,3.90317864,1835.2,1835.1,4.78818777]
[1680548584268,3.90317864,1835.2,1835.1,9.60750961]
[1680548584467,3.89717864,1835.2,1835.1,11.82899733]
[1680548584646,3.89717864,1835.2,1835.1,11.55651972]
[1680548584842,3.89717864,1835.2,1835.1,11.82899733]
[1680548585325,1.87980934,1835.2,1835.1,11.82899733]
[1680548585526,1.87980934,1835.2,1835.1,11.59899733]
[1680548585845,1.51067084,1835.2,1835.1,11.32667297]
[1680548586006,0.006,1835.6,1835.3,0.00237313]
[1680548586207,0.006,1835.7,1835.4,0.81726]
[1680548586843,0.37048511,1835.6,1835.4,0.81726]
[1680548587424,0.37048511,1835.6,1835.4,0.27242]
[1680548587625,0.37048511,1835.6,1835.3,1.0933604]
[1680548587859,0.37048511,1835.6,1835.3,0.27479313]
[1680548588172,2.76602218,1835.5,1835.3,0.00237313]
[1680548588328,0.27660222,1835.4,1835.3,0.00237313]
[1680548589458,0.27660222,1835.4,1835.3,0.27480313]
[1680548589668,0.006,1835.5,1835.3,0.27480313]
[1680548589852,0.39878048,1835.6,1835.3,0.27480313]
[1680548590049,3.16480266,1835.6,1835.3,0.27480313]
[1680548590771,0.39878048,1835.6,1835.3,0.27480313]
[1680548591144,0.37648511,1835.6,1835.3,0.27480313]
[1680548591348,0.37648511,1835.6,1835.3,0.81967313]
[1680548591949,0.37648511,1835.6,1835.3,0.00237313]
[1680548592116,0.37648511,1835.6,1835.3,0.27480313]
[1680548592722,0.37648511,1835.6,1835.3,0.81967313]
[1680548592922,0.37648511,1835.6,1835.3,0.90164044]
[1680548593945,0.37648511,1835.6,1835.3,0.35677044]
[1680548594586,0.37648511,1835.6,1835.3,0.90164044]
[1680548594771,0.37648511,1835.6,1835.3,0.5485004]
[1680548595090,0.37648511,1835.6,1835.3,0.00237313]
[1680548595091,2.43148511,1835.6,1835.3,0.00237313]
[1680548595270,2.76602218,1835.5,1835.3,0.00237313]
[1680548595575,0.006,1835.5,1835.3,0.00237313]
[1680548595727,0.37648511,1835.6,1835.3,0.27480313]
[1680548595927,0.37648511,1835.6,1835.3,0.00237313]
[1680548596140,2.76602218,1835.5,1835.3,0.00237313]
[1680548596350,2.77202218,1835.5,1835.3,0.00237313]
[1680548596777,0.006,1835.5,1835.3,0.00237313]
[1680548597124,0.37048511,1835.6,1835.3,0.00237313]
[1680548597455,0.37648511,1835.6,1835.3,0.00237313]
[1680548598147,2.76602218,1835.5,1835.3,0.27479313]
[1680548598372,2.77202218,1835.5,1835.3,0.81966313]
[1680548598693,2.77202218,1835.5,1835.3,0.00237313]
[1680548598837,0.33250107,1835.4,1835.3,0.00237313]
[1680548599033,0.33850107,1835.4,1835.3,0.00237313]
[1680548599275,0.33250107,1835.4,1835.3,0.00237313]
[1680548599638,0.33250107,1835.4,1835.3,0.27480313]
[1680548599843,0.006,1835.4,1835.3,0.27480313]
[1680548600039,0.006,1835.5,1835.3,0.00237313]
[1680548600269,1.17699161,1835.5,1835.3,0.00237313]
[1680548601082,3.94301379,1835.5,1835.3,0.00237313]
[1680548602276,2.77202218,1835.5,1835.3,0.00237313]
[1680548602621,0.006,1835.5,1835.3,0.27480313]
[1680548602798,2.76602218,1835.4,1835.3,0.00237313]
[1680548602963,2.77202218,1835.4,1835.3,0.00237313]
[1680548603298,3.7587644,1835.4,1835.3,0.00237313]
[1680548603487,4.0311844,1835.4,1835.0,2.11944412]
[1680548603683,9.5797644,1835.4,1835.0,2.11944412]
[1680548603886,9.5817644,1835.4,1835.0,2.39191412]
[1680548604658,3.7607644,1835.4,1835.0,2.39191412]
[1680548604859,2.77202218,1835.4,1835.0,2.93686412]
[1680548605102,2.77202218,1835.4,1835.0,2.11944412]
[1680548605458,2.77202218,1835.4,1835.0,2.39191412]
[1680548606218,2.77202218,1835.4,1835.0,1.84578685]
[1680548606219,0.006,1835.4,1835.0,1.84578685]
[1680548606364,0.006,1835.5,1835.2,0.54612727]
[1680548606715,0.006,1835.7,1835.3,0.27243]
[1680548606923,17.4833,1835.9,1835.3,0.8213]
[1680548606924,20.24083422,1835.9,1835.3,0.8213]
[1680548607061,20.24083422,1835.9,1835.3,1.01413473]
[1680548607731,17.47481204,1835.9,1835.3,1.01413473]
[1680548608144,17.47481204,1835.9,1835.3,1.560262]
[1680548608466,17.47481204,1835.9,1835.5,0.27239]
[1680548608744,17.47481204,1835.9,1835.4,0.2784]
[1680548609197,17.74715204,1835.9,1835.4,0.2784]
[1680548609399,17.74715204,1835.9,1835.4,0.006]
[1680548609600,17.47481204,1835.9,1835.4,0.27241]
[1680548609913,19.47045678,1835.9,1835.4,0.82325]
[1680548610298,17.47481204,1835.9,1835.4,0.82325]
[1680548610946,17.47481204,1835.9,1835.4,0.27841]
[1680548611418,17.74715204,1835.9,1835.4,0.27841]
[1680548611832,17.47481204,1835.9,1835.4,0.006]
[1680548612146,17.47481204,1835.9,1835.4,0.2784]
[1680548612293,19.46822624,1835.9,1835.4,0.2784]
[1680548612715,0.31511991,1835.8,1835.4,0.006]
[1680548612899,0.31511991,1835.8,1835.4,0.27841]
[1680548613854,19.74056624,1835.9,1835.4,0.006]
[1680548614008,2.76602218,1835.7,1835.4,0.27841]
[1680548614649,1.99835199,1835.8,1835.4,0.27841]
[1680548614852,4.76237417,1835.8,1835.4,0.006]
[1680548615004,5.03473417,1835.8,1835.4,0.006]
[1680548615346,4.76437417,1835.8,1835.4,0.006]
[1680548615562,3.2424596,1835.7,1835.4,0.006]
[1680548615739,3.5148296,1835.7,1835.4,0.006]
[1680548616050,0.02229537,1835.6,1835.4,0.006]
[1680548617941,0.29469537,1835.6,1835.4,0.006]
[1680548618146,0.02229537,1835.6,1835.4,0.006]
[1680548618320,0.37600887,1835.6,1835.4,0.006]
[1680548618523,2.76602218,1835.5,1835.4,0.006]
[1680548621418,2.76602218,1835.5,1835.3,0.006]
[1680548622757,5.11642218,1835.5,1835.3,0.006]
[1680548622952,5.11842218,1835.5,1835.3,0.006]
[1680548623258,0.51184222,1835.4,1835.3,0.006]
[1680548623576,0.51184222,1835.4,1835.2,0.006]
[1680548623861,3.2778644,1835.4,1835.2,0.006]
[1680548624014,3.5502844,1835.4,1835.2,0.006]
[1680548624718,8.58702218,1835.3,1835.2,0.006]
[1680548624940,9.49890862,1835.3,1835.2,0.006]
[1680548625260,3.67790862,1835.3,1835.2,0.006]
[1680548625457,2.76602218,1835.3,1835.2,0.006]
[1680548625756,0.51384222,1835.4,1835.2,0.006]
[1680548625960,3.2778644,1835.4,1835.2,0.006]
[1680548626740,0.51184222,1835.4,1835.2,0.006]
[1680548627041,1.3557135,1835.6,1835.2,0.27844]
[1680548627279,2.76602218,1835.5,1835.1,0.82457727]
[1680548627455,2.76602218,1835.5,1835.1,2.45935727]
[1680548627660,0.002,1835.6,1835.2,0.54612727]
[1680548627846,0.35214477,1835.4,1835.3,0.81729]
[1680548628061,0.35214477,1835.4,1835.3,0.27243]
[1680548628227,0.35214477,1835.4,1835.2,0.82455727]
[1680548628544,0.35214477,1835.4,1835.3,0.27243]
[1680548628733,0.02229537,1835.6,1835.2,0.82455727]
[1680548628932,2.76602218,1835.5,1835.2,0.55212727]
[1680548629234,2.76602218,1835.5,1835.2,0.82455727]
[1680548629619,2.76602218,1835.5,1835.2,0.55212727]
[1680548629919,2.76602218,1835.5,1835.2,0.006]
[1680548631748,3.04505394,1835.5,1835.2,0.006]
[1680548632465,3.04110996,1835.5,1835.1,3.55212727]
[1680548632671,9.67931996,1835.5,1835.1,0.55212727]
[1680548632992,2.078,1835.4,1835.0,2.12544412]
[1680548633149,6.08438418,1835.4,1835.0,2.12544412]
[1680548633473,8.58702218,1835.3,1835.0,2.12544412]
[1680548633675,8.86145218,1835.3,1835.0,4.82544412]
[1680548633851,0.85870222,1835.2,1835.0,4.82544412]
[1680548634055,3.6247244,1835.2,1835.0,5.09790412]
[1680548634248,0.008,1835.3,1835.0,5.09990412]
[1680548634448,2.76602218,1835.3,1835.0,4.82144412]
[1680548634662,2.76602218,1835.3,1835.0,4.82544412]
[1680548634835,2.086,1835.4,1835.1,0.27246]
[1680548635035,8.9144,1835.6,1835.1,0.78225041]
[1680548635239,2.76602218,1835.5,1835.0,2.93685412]
[1680548635485,3.03843218,1835.5,1835.0,2.11944412]
[1680548635880,2.76602218,1835.5,1835.0,3.28507559]
[1680548636587,2.76602218,1835.5,1835.0,2.74012559]
[1680548637373,3.03843218,1835.5,1835.0,2.46765559]
[1680548637549,3.03843218,1835.5,1835.0,2.74012559]
[1680548637745,2.76602218,1835.5,1835.0,2.46765559]
[1680548638077,2.76602218,1835.5,1835.1,0.24676556]
[1680548638451,0.27242,1835.4,1835.1,0.24676556]
[1680548638673,3.58325218,1835.5,1835.1,0.24676556]
[1680548638873,3.03843218,1835.5,1835.1,0.24676556]
[1680548639279,3.03842218,1835.5,1835.1,0.24676556]
[1680548639483,5.84329537,1835.4,1835.0,2.11944412]
[1680548639670,2.76602218,1835.3,1835.0,2.12544412]
[1680548640370,0.02429537,1835.4,1835.0,2.12544412]
[1680548640699,0.02229537,1835.4,1835.0,2.71287759]
[1680548640867,0.02229537,1835.4,1835.0,3.25782759]
[1680548641080,0.02229537,1835.4,1835.0,2.44040759]
[1680548641275,0.02229537,1835.4,1835.1,0.24404076]
[1680548641704,0.02229537,1835.4,1835.1,0.51649076]
[1680548641919,5.8304,1835.6,1835.1,1.60753803]
[1680548642212,8.59642218,1835.6,1835.1,4.60753803]
[1680548642426,8.59642218,1835.6,1835.2,0.4607538]
[1680548642427,0.002,1835.6,1835.2,0.4607538]
[1680548642715,2.064,1835.8,1835.2,0.7331838]
[1680548642884,0.33389323,1835.5,1835.3,0.07331838]
[1680548643229,0.33389323,1835.5,1835.1,3.79616803]
[1680548643372,0.33389323,1835.5,1835.1,4.06861803]
[1680548643712,8.86140218,1835.7,1835.1,4.06861803]
[1680548643914,9.8026144,1835.7,1835.1,4.06861803]
[1680548644214,8.86140218,1835.7,1835.1,4.06861803]
[1680548645518,8.88369755,1835.7,1835.1,4.06861803]
[1680548645718,8.61131755,1835.7,1835.1,4.06861803]
[1680548646430,8.61131755,1835.7,1835.1,4.61353803]
[1680548646632,0.02429537,1835.7,1835.1,4.61353803]
[1680548646791,0.002,1835.9,1835.3,0.54612727]
[1680548646991,2.76602218,1835.8,1835.3,3.54612727]
[1680548647191,4.03838218,1835.8,1835.3,0.54612727]
[1680548647410,4.03838218,1835.8,1835.1,1.41887597]
[1680548647411,2.059,1835.6,1835.1,1.41887597]
[1680548647728,3.78914218,1835.5,1835.0,2.12544412]
[1680548647944,9.63243755,1835.5,1835.0,1.57331685]
[1680548648151,9.63443755,1835.5,1835.0,1.57331685]
[1680548648440,3.81343755,1835.5,1835.0,1.57331685]
[1680548648597,3.81143755,1835.5,1835.0,1.57331685]
[1680548650023,3.81143755,1835.5,1834.9,0.54612727]
[1680548650344,3.81143755,1835.5,1834.8,4.37131818]
[1680548650546,0.38114376,1835.4,1834.8,2.23141146]
[1680548650755,0.81733,1835.3,1834.8,4.41222055]
[1680548651255,0.81733,1835.3,1834.8,2.23141146]
[1680548651433,0.81733,1835.3,1834.8,4.41222055]
[1680548651650,3.58335218,1835.3,1834.8,4.41222055]
[1680548651948,3.58335218,1835.3,1834.8,1.41222055]
[1680548652671,2.76602218,1835.2,1834.8,1.41222055]
[1680548652949,0.27246,1835.1,1834.8,0.55212727]
[1680548653987,0.81738,1835.1,1834.8,0.55212727]
[1680548654189,0.81738,1835.1,1834.8,0.006]
[1680548657567,0.27246,1835.1,1834.8,0.006]
[1680548657733,0.3309596,1835.0,1834.8,0.006]
[1680548658368,0.3309596,1835.0,1834.8,0.90734]
[1680548658554,0.3309596,1835.0,1834.8,0.36121273]
[1680548658754,0.27246,1835.1,1834.8,0.36121273]
[1680548659490,0.27246,1835.1,1834.8,0.006]
[1680548660136,0.27246,1835.1,1834.8,0.55212727]
[1680548661241,0.27246,1835.1,1834.8,0.006]
[1680548662139,1.90723,1835.1,1834.8,0.55212727]
[1680548662354,0.81738,1835.1,1834.8,0.006]
[1680548663853,0.81427009,1835.1,1834.7,3.006]
[1680548664193,8.58702218,1835.0,1834.6,0.008]
[1680548664335,1.90746,1834.9,1834.5,0.54612727]
[1680548664535,2.95676818,1834.8,1834.4,0.55212727]
[1680548664734,0.81756,1834.7,1834.4,0.55212727]
[1680548664982,0.27252,1834.7,1834.4,1.37131818]
[1680548665687,0.81756,1834.7,1834.4,0.55212727]
[1680548665987,0.81756,1834.7,1834.4,0.54612727]
[1680548667657,0.81756,1834.7,1834.3,2.92923392]
[1680548668783,0.81756,1834.7,1834.4,0.54612727]
[1680548669546,0.81756,1834.7,1834.3,2.11004301]
[1680548669770,0.81756,1834.7,1834.3,5.11004301]
[1680548669976,0.81756,1834.7,1834.3,5.11204301]
[1680548670892,0.81756,1834.7,1834.3,4.97339854]
[1680548670893,1.90765,1834.7,1834.3,4.97339854]
[1680548671047,1.90765,1834.7,1834.3,4.42527127]
[1680548671240,0.02229537,1834.6,1834.3,4.42527127]
[1680548671444,0.81765,1834.5,1834.3,1.42527127]
[1680548671800,0.81765,1834.5,1834.3,0.006]
[1680548672099,0.27255,1834.5,1834.3,0.006]
[1680548672260,0.27255,1834.5,1834.2,0.87013527]
[1680548672441,0.27255,1834.5,1834.2,1.4060881]
[1680548672637,0.81765,1834.5,1834.2,4.4060881]
[1680548672958,0.32069104,1834.4,1834.2,4.1880801]
[1680548673161,1.13840104,1834.4,1834.2,3.64195283]
[1680548673360,1.13840104,1834.4,1834.2,0.106]
[1680548673694,1.16069641,1834.4,1834.2,0.106]
[1680548674242,1.16069641,1834.4,1834.2,0.1]
[1680548675073,3.92671859,1834.4,1834.2,0.1]
[1680548675250,2.76602218,1834.3,1834.2,0.1]
[1680548675444,4.55853404,1834.3,1834.2,0.1]
[1680548676445,10.37953404,1834.3,1834.2,0.1]
[1680548676808,10.38153404,1834.3,1834.2,0.1]
[1680548677151,11.56953404,1834.3,1834.2,0.1]
[1680548678850,4.01537404,1834.3,1834.2,0.1]
[1680548679045,0.34498641,1834.4,1834.2,0.1]
[1680548679362,0.27258,1834.3,1834.2,0.1]
[1680548680158,0.59326104,1834.4,1834.2,0.1]
[1680548680375,1.13839104,1834.4,1834.2,0.1]
[1680548680953,5.16107232,1834.4,1834.2,0.1]
[1680548681146,5.70820232,1834.4,1834.2,0.1]
[1680548681743,5.71020232,1834.4,1834.2,0.07274815]
[1680548681947,5.16307232,1834.4,1834.2,0.07274815]
[1680548682594,4.89050232,1834.4,1834.2,0.07274815]
[1680548682764,5.16106232,1834.4,1834.2,0.07274815]
[1680548682967,5.16306232,1834.4,1834.2,0.07274815]
[1680548683295,0.78888623,1834.3,1834.2,0.07274815]
[1680548683649,4.10006841,1834.3,1834.2,0.07274815]
[1680548683886,10.56390841,1834.3,1834.2,0.07274815]
[1680548684090,4.47232841,1834.3,1834.2,0.07274815]
[1680548684385,4.47032841,1834.3,1834.2,0.07274815]
[1680548684584,3.95402218,1834.3,1834.2,0.07274815]
[1680548684790,1.188,1834.3,1834.2,0.07274815]
[1680548685093,2.76602218,1834.3,1834.2,0.07274815]
[1680548685963,0.34498641,1834.4,1834.2,0.07274815]
[1680548686152,3.03860218,1834.3,1834.2,0.07274815]
[1680548686354,5.15843504,1834.3,1834.2,0.07274815]
[1680548686604,3.97843504,1834.3,1834.2,0.07274815]
[1680548686759,3.97643504,1834.3,1834.2,0.07274815]
[1680548687109,9.79743504,1834.3,1834.2,0.07274815]
[1680548687257,9.79943504,1834.3,1834.2,0.07274815]
[1680548687786,10.09440534,1834.3,1834.2,0.04325112]
[1680548688683,10.09440534,1834.3,1834.2,0.01388817]
[1680548689871,10.09440534,1834.3,1834.0,0.1]
[1680548690074,1.00944053,1834.2,1834.0,0.1]
[1680548690282,1.90828,1834.1,1834.0,0.1]
[1680548690685,2.19911327,1834.1,1834.0,0.1]
[1680548692875,26.04842205,1834.1,1833.9,0.1]
[1680548693076,9.77402218,1834.0,1833.9,0.1]
[1680548693274,10.59389218,1834.0,1833.9,0.1]
[1680548693506,13.19933838,1834.0,1833.9,0.1]
[1680548693707,13.22163375,1834.0,1833.9,0.1]
[1680548695734,13.50921083,1834.0,1833.9,0.07124229]
[1680548696708,13.50921083,1834.0,1833.9,0.0426153]
[1680548697444,13.50921083,1834.0,1833.6,0.1]
[1680548697445,5.821,1833.8,1833.6,0.1]
[1680548697761,14.41244218,1833.7,1833.6,0.05]
[1680548697956,25.79984218,1833.7,1833.6,0.05]
[1680548698833,26.08263581,1833.7,1833.6,0.05]
[1680548699009,28.69149939,1833.7,1833.6,0.05]
[1680548699734,25.96477939,1833.7,1833.6,0.05]
[1680548700030,25.97077939,1833.7,1833.6,0.05]
[1680548700950,24.88008939,1833.7,1833.6,0.05]
[1680548701726,27.60680939,1833.7,1833.6,0.05]
[1680548701958,27.62910476,1833.7,1833.6,0.05]
[1680548704464,33.03510476,1833.7,1833.2,0.1]
[1680548704618,8.91811,1833.3,1833.2,0.1]
[1680548704957,11.68613218,1833.3,1833.2,0.1]
[1680548705462,23.40883218,1833.3,1833.2,0.1]
[1680548705822,23.68761304,1833.3,1833.2,0.07212191]
[1680548706019,26.30121426,1833.3,1833.2,0.07212191]
[1680548706742,19.29221426,1833.3,1833.2,0.04437054]
[1680548708077,19.29221426,1833.3,1833.2,0.01674532]
[1680548708725,16.67861304,1833.3,1833.2,0.01674532]
[1680548709031,16.67861304,1833.3,1833.1,0.1]
[1680548709032,2.18989086,1833.3,1833.1,0.1]
[1680548709224,2.18789086,1833.3,1833.1,0.1]
[1680548709974,0.24632016,1833.2,1833.1,0.1]
[1680548710391,11.27412,1833.9,1833.2,0.20914598]
[1680548710392,0.006,1833.8,1833.2,0.20914598]
[1680548710681,0.81803,1833.7,1833.2,0.20914598]
[1680548711229,2.76602218,1833.6,1833.2,0.20914598]
[1680548711430,0.81811,1833.5,1833.2,0.20914598]
[1680548711932,0.002,1833.6,1833.3,1.179]
[1680548712279,11.1757,1833.8,1833.4,0.1179]
[1680548712280,0.008,1833.8,1833.4,0.1179]
[1680548712485,0.27267,1833.7,1833.4,0.1179]
[1680548712683,0.27267,1833.8,1833.4,0.1179]
[1680548712836,0.27267,1833.8,1833.5,1.19]
[1680548713026,0.55126,1834.0,1833.6,1.179]
[1680548713225,0.27266,1833.8,1833.6,1.179]
[1680548713466,0.27265,1833.9,1833.6,1.179]
[1680548713898,0.24999044,1833.7,1833.6,1.179]
[1680548714058,0.24999044,1833.7,1833.6,1.609979]
[1680548714262,0.24999044,1833.7,1833.6,1.179]
[1680548714902,0.54522,1834.2,1833.6,6.40770218]
[1680548714903,0.006,1834.2,1833.6,6.40770218]
[1680548715197,0.81779,1834.2,1833.8,1.19]
[1680548715759,0.24732676,1834.1,1833.8,1.19]
[1680548715969,0.51994676,1834.1,1833.9,0.119]
[1680548716359,0.24732676,1834.1,1833.9,0.119]
[1680548716868,0.27855,1834.5,1834.0,1.19]
[1680548717048,0.27256,1834.5,1834.0,1.348162]
[1680548717247,0.81766,1834.5,1834.0,1.348162]
[1680548717492,0.82366,1834.5,1834.0,1.348162]
[1680548717851,0.25313478,1834.4,1834.0,1.348162]
[1680548718198,0.25313478,1834.4,1834.2,1.179]
[1680548719096,1.07083478,1834.4,1834.2,1.179]
[1680548719409,0.52570478,1834.4,1834.2,1.179]
[1680548719749,0.25313478,1834.4,1834.2,1.179]
[1680548719950,0.52570478,1834.4,1834.2,1.179]
[1680548720267,0.52570478,1834.4,1834.2,1.31038162]
[1680548720586,0.25313478,1834.4,1834.2,1.31038162]
[1680548720896,0.25313478,1834.4,1834.3,1.179]
[1680548721864,0.27254,1834.6,1834.3,1.179]
[1680548722068,0.27254,1834.6,1834.4,1.19]
[1680548722269,0.27254,1834.6,1834.4,1.309]
[1680548722667,0.11600001,1834.9,1834.5,1.179]
[1680548722866,0.38250001,1834.9,1834.6,1.19]
[1680548723067,0.38250001,1834.9,1834.6,1.309]
[1680548723804,0.38249001,1834.9,1834.6,1.309]
[1680548724024,0.38249001,1834.9,1834.8,1.179]
[1680548724783,0.11000001,1834.9,1834.8,1.179]
[1680548725168,0.38249001,1834.9,1834.8,1.179]
[1680548725375,0.38249001,1834.9,1834.8,1.2969]
[1680548725705,0.11000001,1834.9,1834.8,2.4869]
[1680548725856,0.11000001,1834.9,1834.8,3.4869]
[1680548726060,0.11000001,1834.9,1834.8,3.7594]
[1680548726259,0.11000001,1834.9,1834.8,6.4869]
[1680548726505,0.11000001,1834.9,1834.8,6.4889]
[1680548726817,0.11000001,1834.9,1834.8,9.25492218]
[1680548727108,0.11000001,1834.9,1834.8,5.4889]
[1680548727264,0.11000001,1834.9,1834.8,2.371]
[1680548727459,0.38249001,1834.9,1834.7,1.192]
[1680548727703,0.92747001,1834.9,1834.7,1.19]
[1680548728694,0.93347001,1834.9,1834.7,1.19]
[1680548729897,0.11000001,1834.9,1834.8,1.185]
[1680548730219,0.11000001,1834.9,1834.8,1.3035]
[1680548730520,0.11000001,1834.9,1834.8,1.185]
[1680548730657,0.38249001,1834.9,1834.8,1.185]
[1680548731173,0.92747001,1834.9,1834.8,1.185]
[1680548731380,0.92747001,1834.9,1834.8,5.56068328]
[1680548731580,0.92747001,1834.9,1834.8,5.56268328]
[1680548732165,0.93347001,1834.9,1834.8,5.56268328]
[1680548734010,0.92486011,1834.9,1834.8,1.187]
[1680548734220,0.92486011,1834.9,1834.8,1.185]
[1680548735597,0.37988011,1834.9,1834.8,1.185]
[1680548735845,0.10739011,1834.9,1834.8,2.4865]
[1680548736549,0.37988011,1834.9,1834.8,5.25252218]
[1680548736713,0.37988011,1834.9,1834.8,5.26052218]
[1680548736898,0.10739011,1834.9,1834.8,5.4945]
[1680548737396,0.10739011,1834.9,1834.8,5.376]
[1680548737595,0.37988011,1834.9,1834.8,0.008]
[1680548737901,0.10739011,1834.9,1834.7,1.19]
[1680548740713,0.37988011,1834.9,1834.7,1.19]
[1680548742363,0.10739011,1834.9,1834.7,1.19]
[1680548742517,0.10739011,1834.9,1834.7,1.309]
[1680548742855,0.10739011,1834.9,1834.8,1.19]
[1680548747119,0.10739011,1834.9,1834.8,5.41852218]
[1680548747320,0.10739011,1834.9,1834.8,8.14802218]
[1680548747767,0.10739011,1834.9,1834.8,8.42052218]
[1680548747931,0.10739011,1834.9,1834.8,9.3289784]
[1680548749344,0.10739011,1834.9,1834.8,9.8739884]
[1680548749750,0.10739011,1834.9,1834.8,9.3289784]
[1680548749949,0.10739011,1834.9,1834.8,9.0564784]
[1680548750132,0.10739011,1834.9,1834.8,5.382]
[1680548750332,0.10739011,1834.9,1834.8,4.192]
[1680548750559,0.10739011,1834.9,1834.8,1.19]
[1680548750728,0.10739011,1834.9,1834.8,6.95602218]
[1680548750928,0.10739011,1834.9,1834.8,6.95802218]
[1680548751130,0.10739011,1834.9,1834.8,8.32586243]
[1680548752107,0.10739011,1834.9,1834.8,9.51586243]
[1680548752253,0.10739011,1834.9,1834.8,9.74586243]
[1680548752668,0.10739011,1834.9,1834.8,6.74984025]
[1680548752851,0.10739011,1834.9,1834.8,5.91615603]
[1680548753709,0.37988011,1834.9,1834.8,0.002]
[1680548753863,0.92486011,1834.9,1834.7,1.1063]
[1680548754250,0.09248601,1834.8,1834.7,1.1063]
[1680548755090,0.2725,1834.8,1834.7,1.1063]
[1680548755250,0.92488011,1834.9,1834.7,1.1063]
[1680548757863,0.37989011,1834.9,1834.7,1.10401623]
[1680548759865,0.92487011,1834.9,1834.7,1.10401623]
[1680548763357,0.32989011,1834.9,1834.7,1.10401623]
[1680548763973,0.32989011,1834.9,1834.8,0.35450715]
[1680548764322,0.05739011,1834.9,1834.8,0.35450715]
[1680548764593,0.32988011,1834.9,1834.8,0.35450715]
[1680548764803,0.05739011,1834.9,1834.8,0.35450715]
[1680548767022,9.46188229,1834.9,1834.8,0.35450715]
[1680548767326,11.45363,1834.8,1834.7,1.10401623]
[1680548767456,1.0,1834.6,1834.2,0.006]
[1680548767653,1.0,1834.6,1834.0,0.54612727]
[1680548767654,4.63378,1834.4,1834.0,0.54612727]
[1680548767857,7.39980218,1834.4,1834.0,0.006]
[1680548768104,7.40180218,1834.4,1833.9,0.55212727]
[1680548768304,0.8178,1834.2,1833.9,0.006]
[1680548768606,0.8178,1834.2,1833.8,0.54612727]
[1680548768956,0.8178,1834.2,1834.0,0.362303]
[1680548769173,0.84009537,1834.2,1834.0,0.362303]
[1680548770205,0.84009537,1834.2,1833.8,0.006]
[1680548770436,1.27200954,1834.1,1833.7,0.55212727]
[1680548770636,0.81789,1834.0,1833.7,0.006]
[1680548770850,0.27263,1834.0,1833.6,1.50979779]
[1680548770988,0.27263,1834.0,1833.9,0.36291219]
[1680548772046,0.002,1834.2,1833.7,0.006]
[1680548772245,18.49469,1834.3,1833.7,0.50866]
[1680548772427,0.2726,1834.2,1833.7,0.50866]
[1680548772743,18.49468,1834.3,1833.7,1.11464178]
[1680548772910,18.49468,1834.3,1833.7,1.66076905]
[1680548773120,18.49468,1834.3,1833.7,1.11464178]
[1680548774824,11.615,1834.3,1833.9,0.27263]
[1680548775017,11.615,1834.3,1833.9,4.85537536]
[1680548775422,0.002,1834.3,1833.9,4.85537536]
[1680548775669,6.5612,1834.4,1833.9,5.40065536]
[1680548775834,6.5612,1834.4,1834.0,0.81267554]
[1680548776039,6.5612,1834.4,1834.0,0.81867554]
[1680548776360,0.002,1834.4,1834.0,0.81867554]
[1680548776520,11.66514,1834.6,1834.0,4.12994772]
[1680548776521,17.7552,1834.6,1834.0,4.12994772]
[1680548776736,17.7552,1834.6,1834.1,0.23]
[1680548776988,17.7552,1834.6,1834.1,0.94458477]
[1680548777151,17.7552,1834.6,1834.1,0.71458477]
[1680548777771,11.3886,1834.6,1834.1,0.71458477]
[1680548777968,11.3886,1834.6,1834.2,0.36848502]
[1680548778182,0.002,1834.6,1834.3,2.76602218]
[1680548778371,0.27851,1834.8,1834.3,2.76602218]
[1680548778372,0.27253,1834.7,1834.4,0.27660222]
[1680548778573,0.27253,1834.7,1834.3,2.77202218]
[1680548779256,0.81754,1834.8,1834.3,2.77202218]
[1680548779579,17.89249011,1834.9,1834.3,2.77202218]
[1680548779580,17.91478548,1834.9,1834.3,2.77202218]
[1680548779786,21.86780766,1834.9,1834.3,0.55116]
[1680548779935,1.79147855,1834.8,1834.2,3.91967502]
[1680548780135,1.79147855,1834.8,1834.3,0.27257]
[1680548780379,0.02229537,1834.7,1834.3,0.006]
[1680548780538,0.27254,1834.6,1834.2,0.37448502]
[1680548780739,2.76602218,1834.5,1834.2,0.36848502]
[1680548781042,6.136,1834.6,1834.2,0.36848502]
[1680548781546,6.136,1834.6,1834.2,0.64707502]
[1680548781783,6.91894528,1834.6,1834.2,0.36848502]
[1680548782785,6.91894528,1834.6,1834.2,0.64107502]
[1680548783094,6.91894528,1834.6,1834.2,0.36848502]
[1680548783095,7.19148528,1834.6,1834.2,0.36848502]
[1680548785090,6.91894528,1834.6,1834.2,0.36848502]
[1680548785692,7.19147528,1834.6,1834.2,0.36848502]
[1680548786046,6.91894528,1834.6,1834.2,0.36848502]
[1680548786884,7.19147528,1834.6,1834.2,0.36848502]
[1680548787083,6.91894528,1834.6,1834.2,0.36848502]
[1680548787392,0.69189453,1834.5,1834.2,0.36848502]
[1680548787541,0.96444453,1834.5,1834.2,0.36848502]
[1680548787741,0.69189453,1834.5,1834.2,0.36848502]
[1680548788158,12.14289453,1834.5,1834.2,0.36848502]
[1680548788355,12.41744453,1834.5,1834.2,0.36848502]
[1680548788919,12.14489453,1834.5,1834.2,0.36848502]
[1680548789711,12.96256453,1834.5,1834.2,0.36848502]
[1680548789856,1.29625645,1834.4,1834.2,0.36848502]
[1680548790056,12.14489453,1834.5,1834.2,0.36848502]
[1680548790255,12.41744453,1834.5,1834.2,0.36848502]
[1680548790455,12.14489453,1834.5,1834.2,0.36848502]
[1680548790713,12.41744453,1834.5,1834.2,0.36848502]
[1680548790917,12.14489453,1834.5,1834.2,0.36848502]
[1680548791616,0.002,1834.5,1834.2,0.36848502]
[1680548791793,0.002,1834.6,1834.3,1.185]
[1680548792115,0.06339011,1834.9,1834.3,1.185]
[1680548792116,0.05739011,1834.9,1834.4,0.27256]
[1680548792615,0.87486011,1834.9,1834.3,3.006]
[1680548792758,0.96234612,1834.9,1834.5,0.36934165]